Cogmind - Beta 13 *** ADVENTURER MODE // 2024.06.24 @ 22:20:37 Player: toon Result: Destroyed by G-47 Trooper with Particle Gun Performance ------------- Evolutions (2) 1000 Regions Visited (5) 1000 Robots Destroyed (47) 235 Value Destroyed (991) 991 Prototype IDs (0) 0 Alien Tech Used (0) 0 Bonus (0) 0 TOTAL SCORE: 3226 Bonus ------- None Cogmind --------- Core Integrity 0/550 Matter 146/300 Energy 27/100 System Corruption 0% Temperature Warm (147) Movement Core (550) Ox10 Location -8/Materials Parts ------- > --- POWER (2) -------- (None) > --- PROPULSION (2) --- (None) > --- UTILITY (5) ------ Large Storage Unit > --- WEAPON (2) ------- Particle Gun Heavy Ion Cannon > --- INVENTORY (15) --- Wheel Light Armor Plating Heavy Ion Cannon Datajack Mining Laser Mining Claw Peak State ------------ > --- POWER ------------ Light Ion Engine Light Ion Engine > --- PROPULSION ------- Wheel Hover Unit > --- UTILITY ---------- Large Storage Unit Weapon Shielding Hardened Light Armor Plating Hardened Light Armor Plating > --- WEAPON ----------- Heavy Ion Cannon Spear > --- INVENTORY -------- Ion Engine Wheel Wheel Heavy EM Pulse Gun Beam Rifle Particle Gun Heavy Ion Cannon Datajack Mining Laser Mining Claw Stasis Trap Stasis Trap Stasis Trap Stasis Trap [Rating: 20] Favorites ----------- Power Light Ion Engine Engine Light Ion Engine Propulsion Wheel Treads Light Treads Wheel Wheel Hover Unit Hover Unit Utility Weapon Shielding Device Improved Terrain Scanner Storage Large Storage Unit Protection Weapon Shielding Weapon Assault Rifle Energy Gun Beam Rifle Energy Cannon Heavy Ion Cannon Ballistic Gun Assault Rifle Special Weapon Mining Laser Piercing Weapon Spear Special Melee Weapon Datajack Build | -11 -10 -10 -9 -9 -8 ------- Run | Yrd Mat Min Mat Min Mat Slots Evolved 4 | . . . 2 . 2 Power 1 | . . . . . 1 Propulsion . | . . . . . . Utility 3 | . . . 2 . 1 Weapon . | . . . . . . Parts Attached 38 | 6 4 3 5 5 15 Power 5 | 1 1 . . 1 2 Engine 5 | 1 1 . . 1 2 Core . | . . . . . . Reactor . | . . . . . . Propulsion 12 | 2 1 . 1 2 6 Treads 4 | . 1 . 1 . 2 Leg . | . . . . . . Wheel 7 | 2 . . . 1 4 Hover 1 | . . . . 1 . Flight . | . . . . . . Utility 6 | 1 1 1 2 1 . Device 1 | 1 . . . . . Storage 1 | . . . . 1 . Processor . | . . . . . . Hackware . | . . . . . . Protection 4 | . 1 1 2 . . Artifact . | . . . . . . Weapon 15 | 2 1 2 2 1 7 Energy Gun 5 | 1 . 1 2 . 1 Energy Cannon 5 | . . . . . 5 Ballistic Gun 2 | 1 . 1 . . . Ballistic Cannon . | . . . . . . Launcher . | . . . . . . Special Weapon 1 | . . . . 1 . Impact Weapon . | . . . . . . Slashing Weapon . | . . . . . . Piercing Weapon 1 | . . . . . 1 Special Melee Weapon 1 | . 1 . . . . Unidentified Prototypes . | . . . . . . Parts Lost 13 | . . 1 . 1 11 Power 4 | . . . . 1 3 Propulsion 2 | . . . . . 2 Utility 3 | . . . . . 3 Weapon 4 | . . 1 . . 3 Highest Loss Streak 10 | . . 1 . 1 10 To Critical Strikes . | . . . . . . Average Slot Usage (%) 93 | . 94 99 91 100 69 Engine 12 | . 14 14 11 11 12 Treads 7 | . 8 14 11 1 . Wheel 12 | . 19 14 11 11 9 Hover 3 | . . . . 9 2 Device 8 | . 14 14 11 3 . Storage 3 | . . . . 7 9 Protection 20 | . 8 14 25 33 20 Energy Gun 8 | . 4 5 8 17 . Energy Cannon 2 | . . . . . 11 Ballistic Gun 9 | . 14 20 13 . . Special Weapon 1 | . . . . 4 . Special Melee Weapon 1 | . 9 1 . . . Naked Turns . | . . . . . . Heaviest Build 53 | 8 8 9 21 40 53 Greatest Support 26 | 20 20 20 20 20 26 Greatest Overweight (x) 16 | . . . 2 6 16 Average Overweight (x) 1 | . . . . 2 3 Largest Inventory Capacity 15 | 5 5 5 5 15 15 Average Capacity 8 | 5 5 5 5 11 15 Most Carried 15 | 3 5 5 5 12 15 Average Carried 6 | 1 3 4 5 6 13 Final Capacity 15 | 5 5 5 5 15 15 Final Carried 12 | 2 4 5 5 12 6 Class Distribution -------------------- 70% | Scavenger-Mutant 29% | Mutant Dominant Class ---------------- Scavenger-Mutant | -10/Materials Scavenger-Mutant | -10/Mines Scavenger-Mutant | -9/Materials Mutant | -9/Mines Scavenger-Mutant | -8/Materials Resources | -11 -10 -10 -9 -9 -8 ----------- Run | Yrd Mat Min Mat Min Mat Matter Collected 951 | 136 15 426 . 143 231 Remotely . | . . . . . . Salvage Created 1750 | 80 270 645 55 220 480 Parts 108 | 6 17 40 6 12 27 Haulers Intercepted 1 | . 1 . . . . Recyclers Shooed 2 | . . 1 . . 1 Parts Field Recycled . | . . . . . . Retrieved Matter . | . . . . . . Parts Self-Destructed . | . . . . . . Prevented . | . . . . . . Kills | -11 -10 -10 -9 -9 -8 ------- Run | Yrd Mat Min Mat Min Mat Combat Hostiles Destroyed 27 | 1 5 7 1 6 7 Guns 19 | 1 5 7 1 5 . Cannons 7 | . . . . . 7 AOE 1 | . . . . 1 . Classes Destroyed 9 | 3 3 2 1 . . Worker 9 | 1 1 6 . 1 . Builder 1 | . . 1 . . . Tunneler 3 | 1 . 1 . 1 . Hauler 1 | . 1 . . . . Recycler 5 | . . 3 . . 2 Watcher 1 | . 1 . . . . Swarmer 7 | . 2 2 . 3 . Grunt 16 | 1 3 5 . 3 4 Sentry 4 | . . . 1 . 3 Best Kill Streak 7 | 2 7 7 1 4 2 Combat Bots Only 5 | 1 5 3 1 3 2 Max Kills in Single Turn 2 | 1 2 1 1 1 1 Gunslinging 1 | . 1 . . . . Exploded 1 | . . . . 1 . Melee . | . . . . . . Uniques/NPCs Destroyed . | . . . . . . Combat | -11 -10 -10 -9 -9 -8 -------- Run | Yrd Mat Min Mat Min Mat Hostile Shots Fired 234 | 3 20 50 2 30 129 Missed 49 | . 5 14 . 9 21 Damage Taken 2166 | 25 117 346 24 181 1473 Core 686 | 8 29 58 . 38 553 Absorbed by Shields . | . . . . . . Redirected to Shielding 88 | . . 37 . 14 37 Ignored by Resistances 588 | 8 38 110 6 59 367 Regen/Repaired (Parts) 9 | . . . . . 9 Core Remaining (%) 82 | 96 . 62 . 90 . Volleys Fired 126 | 6 11 53 1 23 32 Largest 2 | 2 2 2 2 2 2 Hottest 130 | 60 60 60 101 101 130 Shots Fired 192 | 12 21 90 2 31 36 Gun 157 | 12 21 90 2 29 3 Cannon 33 | . . . . . 33 Launcher . | . . . . . . Special 2 | . . . . 2 . Kinetic 88 | 6 11 71 . . . Thermal 60 | . . . 1 23 36 Explosive . | . . . . . . Electromagnetic 44 | 6 10 19 1 8 . Robot Hit Streak 26 | 9 26 12 14 16 10 Robot Miss Streak 4 | 1 1 4 . 1 2 Penetration Max . | . . . . . . Secondary Targets 4 | . 2 1 . 1 . Max Gunslinging Chain 1 | . 1 1 . 1 . Shots Hit Robots 149 | 10 19 66 2 22 30 Core Hits 69 | 4 13 27 2 9 14 Critical Kills . | . . . . . . Critical Parts Destroyed . | . . . . . . Critical Strikes 6 | . 1 . 1 3 1 Burn 5 | . . . 1 3 1 Corrupt 1 | . 1 . . . . Melee Attacks 4 | . . 3 . . 1 Impact . | . . . . . . Slashing . | . . . . . . Piercing 1 | . . . . . 1 Sneak Attacks 1 | . . . . . 1 Combat Hostiles . | . . . . . . Follow-up Attacks . | . . . . . . Damage Inflicted 2614 | 125 257 879 29 410 914 Guns 1568 | 125 257 819 29 312 26 Cannons 840 | . . . . . 840 Explosions 158 | . . 60 . 98 . Melee 48 | . . . . . 48 Ramming . | . . . . . . Kinetic 818 | 70 109 639 . . . Thermal 1272 | . . 60 15 331 866 Explosive . | . . . . . . Electromagnetic 476 | 55 148 180 14 79 . Impact . | . . . . . . Slashing . | . . . . . . Piercing 48 | . . . . . 48 Highest Corruption . | . . . . . . Average Corruption . | . . . . . . Corruption Purged . | . . . . . . Corruption Blocked . | . . . . . . Overload Shots . | . . . . . . Overflow Damage 18 | . . . . 12 6 Projectiles 6 | . . . . . 6 Explosions 12 | . . . . 12 . Melee . | . . . . . . Knockbacks . | . . . . . . Impact . | . . . . . . Kinetic . | . . . . . . Secondary . | . . . . . . Self-Inflicted Damage 36 | . . 20 . 16 . Shots 2 | . . 1 . 1 . Rammed . | . . . . . . Targets Rammed . | . . . . . . Kicked . | . . . . . . Crushed . | . . . . . . Highest Temperature 701 | 18 56 45 60 430 701 Average Temperature 194 | 16 41 12 33 160 310 Received Heat Transfer 1446 | 18 45 213 9 72 1089 Effects 36 | . . . . 7 29 Shutdowns 5 | . . . . 1 4 Energy Bleed 6 | . . . . 1 5 Interference 5 | . . . . 3 2 Matter Decay 8 | . . . . 1 7 Short Circuit 5 | . . . . 1 4 Damage (minor) 2 | . . . . . 2 Damage (major) 3 | . . . . . 3 Damage (core) 2 | . . . . . 2 Siege Activations . | . . . . . . Robots Corrupted . | . . . . . . Combat Hostiles . | . . . . . . Parts Fried . | . . . . . . Impact Corruptions . | . . . . . . Robots Melted . | . . . . . . Combat Hostiles . | . . . . . . Parts Melted 3 | . . 1 1 1 . Heat Transferred 2420 | . . 100 111 914 1295 Parts Sabotaged . | . . . . . . Parts Stolen . | . . . . . . Parts Stripped . | . . . . . . Power Chain Reactions 2 | . . 1 . 1 . Alert | -11 -10 -10 -9 -9 -8 ------- Run | Yrd Mat Min Mat Min Mat Peak Influence 223 | 30 160 223 98 176 190 Initial 52 | . 16 52 41 31 . Average 101 | 7 137 108 60 109 94 Maximum Alert Level 1 | . . 1 . . . Low Security (%) 96 | 100 100 91 100 100 100 Level 1 3 | . . 8 . . . Level 2 . | . . . . . . Level 3 . | . . . . . . Level 4 . | . . . . . . Level 5 . | . . . . . . High Security . | . . . . . . Max Security . | . . . . . . Squads Dispatched 3 | . . . 1 . 2 Investigation 3 | . . . 1 . 2 Extermination . | . . . . . . Reinforcement . | . . . . . . Assault . | . . . . . . Garrison . | . . . . . . Intercept . | . . . . . . Searches Triggered . | . . . . . . Construction Impeded . | . . . . . . Haulers Reinforced . | . . . . . . Active Scanning Responses . | . . . . . . Cargo Convoy Interrupts . | . . . . . . Stealth | -11 -10 -10 -9 -9 -8 --------- Run | Yrd Mat Min Mat Min Mat Distress Signals 1 | . . . . 1 . Communications Jammed . | . . . . . . Distress Signals . | . . . . . . Times Spotted 33 | 1 7 10 1 6 8 Peak Tracking Total 6 | 1 6 3 1 3 3 Tactical Retreats 3 | . . 3 . . . Traps | -11 -10 -10 -9 -9 -8 ------- Run | Yrd Mat Min Mat Min Mat Traps Triggered . | . . . . . . Indirectly . | . . . . . . Trap Hack Attempts . | . . . . . . Triggered . | . . . . . . Disarmed . | . . . . . . Reprogrammed . | . . . . . . Reused . | . . . . . . Traps Extracted . | . . . . . . Installed . | . . . . . . Triggered 1 | . . 1 . . . Most Traps Carried 4 | . . . . 4 4 Machines | -11 -10 -10 -9 -9 -8 ---------- Run | Yrd Mat Min Mat Min Mat Machines Disabled 1 | . . 1 . . . Max in Single Turn 1 | . . 1 . . . Machines Repaired . | . . . . . . Machines Dismantled . | . . . . . . Machines Sabotaged . | . . . . . . Overloaded Fab Kills . | . . . . . . Hacking | -11 -10 -10 -9 -9 -8 --------- Run | Yrd Mat Min Mat Min Mat Machines Accessed 6 | . 1 . 2 . 3 Terminals 5 | . 1 . 2 . 2 Fabricators . | . . . . . . Repair Stations 1 | . . . . . 1 Recycling Units . | . . . . . . Scanalyzers . | . . . . . . Garrison Access . | . . . . . . Total Hacks 28 | . 6 . 11 . 11 Successful 16 | . 3 . 5 . 8 Failed 12 | . 3 . 6 . 3 Catastrophic 1 | . . . 1 . . Database Lockouts . | . . . . . . Manual 6 | . . . 5 . 1 Terminals 25 | . 6 . 11 . 8 Fabricators . | . . . . . . Repair Stations 3 | . . . . . 3 Recycling Units . | . . . . . . Scanalyzers . | . . . . . . Garrison Access . | . . . . . . Terminal Hacks 14 | . 3 . 5 . 6 Record 12 | . 3 . 3 . 6 Branch Access Points 1 | . . . 1 . . Alert Level 1 | . . . 1 . . Fabricator Hacks . | . . . . . . Repair Station Hacks 2 | . . . . . 2 Scan Component 1 | . . . . . 1 Repair 1 | . . . . . 1 Recycling Unit Hacks . | . . . . . . Scanalyzer . | . . . . . . Garrison Access Hacks . | . . . . . . Unauthorized Hacks . | . . . . . . Terminals . | . . . . . . Fabricators . | . . . . . . Repair Stations . | . . . . . . Recycling Units . | . . . . . . Scanalyzers . | . . . . . . Garrison Access . | . . . . . . Data Cores Recovered . | . . . . . . Used . | . . . . . . Hacking Detections 6 | . 1 . 2 . 3 Full Trace Events 4 | . 1 . 1 . 2 Feedback Events . | . . . . . . Feedback Blocked . | . . . . . . Robot Schematics Acquired . | . . . . . . Robots Built . | . . . . . . Authchips . | . . . . . . Time . | . . . . . . Total Robot Build Rating . | . . . . . . Part Schematics Acquired . | . . . . . . Parts Built . | . . . . . . Authchips . | . . . . . . Time . | . . . . . . Total Part Build Rating . | . . . . . . Parts Repaired 1 | . . . . . 1 Time 44 | . . . . . 44 Parts Recycled . | . . . . . . Recycled Matter . | . . . . . . Retrieved Matter . | . . . . . . Retrieved Components . | . . . . . . Parts Scanalyzed . | . . . . . . Part Schematics Acquired . | . . . . . . Parts Damaged . | . . . . . . Bothacking | -11 -10 -10 -9 -9 -8 ------------ Run | Yrd Mat Min Mat Min Mat Used RIF Installer . | . . . . . . Robots Hacked 1 | . . 1 . . . Non-combat . | . . . . . . Combat 1 | . . 1 . . . Robot Hacks Applied 3 | . . 3 . . . parse_system 3 | . . 3 . . . Relay Couplers Released . | . . . . . . Fabnet Peak Effective % . | . . . . . . Robots Rewired . | . . . . . . Allies Hacked . | . . . . . . Hacks Repelled . | . . . . . . Allies | -11 -10 -10 -9 -9 -8 -------- Run | Yrd Mat Min Mat Min Mat Total Allies 1 | . . . . 1 . Largest Group 1 | . . . . 1 1 Highest-Rated Group 31 | . . . . 31 31 Highest-Rated Ally 31 | . . . . 31 31 Total Orders . | . . . . . . Ally Attacks 1 | . . . . . 1 Total Damage 21 | . . . . . 21 Kills . | . . . . . . Allies Corrupted . | . . . . . . Allies Melted . | . . . . . . Intel | -11 -10 -10 -9 -9 -8 ------- Run | Yrd Mat Min Mat Min Mat Robot Analysis Total . | . . . . . . Derelict Logs Recovered 4 | . . 2 . 2 . Drone Launches . | . . . . . . Drone Recoveries . | . . . . . . Exploration | -11 -10 -10 -9 -9 -8 ------------- Run | Yrd Mat Min Mat Min Mat Turns Passed 1837 | 78 186 637 138 475 323 Spaces Moved 924 | 63 102 299 71 274 115 Core 26 | 15 . . . . 11 Treads 453 | . 71 299 70 8 5 Legs . | . . . . . . Wheels 404 | 48 31 . 1 228 96 Hover 41 | . . . . 38 3 Flight . | . . . . . . Fastest Speed 50 | 50 80 160 110 95 105 Average Speed 151 | 72 135 160 179 146 184 Slowest Speed 850 | 80 160 160 240 425 850 Overloaded Moves . | . . . . . . Propulsion Burnouts . | . . . . . . Robots Hopped . | . . . . . . Cave-ins Triggered . | . . . . . . Exploration Rate (%) 28 | 5 19 66 14 56 8 Regions Visited 5 Branch Regions 2 Pre-discovered Areas . | . . . . . . Known Exits Taken 1 | . . . 1 . . Unknown Exits Taken 4 | 1 1 1 . 1 . Scrap Searched 2 | . . 1 . 1 . Spaces Dug 1 | . . . . 1 . Terrain Destroyed 13 | . . 6 . 5 2 Melee . | . . . . . . Projectile 4 | . . . . 2 2 AOE 9 | . . 6 . 3 . Terrain Rammed . | . . . . . . Walls Destroyed . | . . . . . . Machines Disabled . | . . . . . . Actions | -11 -10 -10 -9 -9 -8 --------- Run | Yrd Mat Min Mat Min Mat Total 1160 | 82 128 366 79 313 192 Wait 18 | . 5 5 . . 8 Move 919 | 62 101 298 70 273 115 Hop . | . . . . . . Pick Up 36 | 8 5 3 . 10 10 Fast Attach 5 | . . . 5 . . Attach 18 | 6 1 1 . 3 7 Detach . | . . . . . . Swap 15 | . 3 2 . 2 8 Drop 19 | . 2 1 3 2 11 Fire 126 | 6 11 53 1 23 32 Melee 4 | . . 3 . . 1 Ram . | . . . . . . Kick . | . . . . . . Crush . | . . . . . . Escape Stasis . | . . . . . . Rewire . | . . . . . . Trap . | . . . . . . Miscellaneous . | . . . . . . Route ------- -11/Scrapyard -10/Materials -10/Mines (discovered 2 exits: *Mat x2) -9/Materials (discovered 4 exits: *Min x2 / Sto x2) -9/Mines -8/Materials History --------- Turn | Location | Event 2 | -11/Scrapyard | Met Revision 17 54 | -11/Scrapyard | Discovered new exit (range 8) 79 | -11/Scrapyard | Entered Materials 223 | -10/Materials | Discovered new exit (range 7) 265 | -10/Materials | Entered Mines 289 | -10/Mines | Learned Materials stockpile data 451 | -10/Mines | Build established: Scavenger-Mutant 724 | -10/Mines | Discovered new exit (range 13) 875 | -10/Mines | Discovered new exit (range 14) 902 | -10/Mines | Entered Materials 902 | -9/Materials | Evolved 2 slots: Utility x2 903 | -9/Materials | Identified exit to Mines 960 | -9/Materials | Identified exit to Storage 1040 | -9/Materials | Entered Mines 1150 | -9/Mines | Learned Materials terminal intel 1321 | -9/Mines | Received a Mining Laser from a helpful Derelict 1466 | -9/Mines | Found a hidden stash of uninstalled traps 1489 | -9/Mines | Build established: Mutant 1504 | -9/Mines | Discovered new exit (range 8) 1515 | -9/Mines | Entered Materials 1515 | -8/Materials | Accompanied by 1 ally 1515 | -8/Materials | Evolved 2 slots: Power x1, Utility x1 1516 | -8/Materials | Loaded intel: 12 terminal locations 1685 | -8/Materials | Repaired Spear? 1764 | -8/Materials | Core integrity fell below 50% 1800 | -8/Materials | Lost 10 parts (3p2n3u2w) 1804 | -8/Materials | Core integrity fell below 20% 1838 | -8/Materials | Destroyed by G-47 Trooper with Particle Gun Last Messages --------------- Critical hit (Burn: +37). Overheating: Energy bleed (-11). Ion Engine destroyed. Imp. EM Pulse Cannon destroyed. Overheating: Broken Hvy. Ion Cannon damaged (-24). Overheating: Lrg. Storage Unit damaged (-108). Critical hit (Burn: +37). G-47 Trooper destroyed. Dropped Stasis Trap. Acquired 48 matter. Critical hit (Burn: +37). Dropped Stasis Trap. R-06 Scavenger collects Aluminum Leg. Broken Hvy. Ion Cannon destroyed. Dropped Stasis Trap. Critical hit (Burn: +37). Destroyed Aluminum Leg. G-47 Trooper suffers critical hit (Burn). G-47 Trooper destroyed. Map ----- +----------------------------------------------------+ | ?????????????????????????????????????????????????? | | ?????????????????????????????????????????????????? | | ?????????????????????????????????????????????????? | | ?????????????????????????????????????????????????? | | ?????????????????????????????????????????????????? | | ?????????????????????????????????????????????????? | | ?????????????????????????????????????????????????? | | ?????????????????????????????????????????????????? | | ?????????????????????????????????????????????????? | | ?????????????????????????????????????????????????? | | ?????????????????????????????????????????????????? | | ?????????????????????????????????????????????????? | | ????""???????????????????????????????????????????? | | ????T"???????????????????????????????????????????? | | ????""???????????????###?????????????????????????? | | ?????????????????????# #########?????????????????? | | ?????????????????????# = [ #?????????????????? | | ?????????????????????# #?????????????????? | | ?????????????????????# % #?????????????????? | | ?????????????????????# """ #?????????????????? | | ?????????????????????# """ """ #?########????????? | | ?????????????????????# """ %T" #?#]]//[[#????????? | | ?????????????????????# &""" #?#] / =#????????? | | ?????????????????????# =&& #?#= #????????? | | ??????????T???##############+##### #######??? | | ?????????? % @=&! #??? | | ?????????? g #??? | | ?????????? % #??? | | ???????????#################+#######T#####+####??? | | ????????????????????#%! = ###????? ????? | | ????????????????????##=""" """ """ #?????????%#??? | | ?????????????????????#!"R/ """ """ #??????????#??? | | ?????????????????????# """ """ """ #?????????????? | | ?????????????????????# ??????????????? | | ?????????????????????#! = = ??????????????? | | ?????????????????????###############?????????????? | | | | | | | | | | | | | | | | | | | | | | | | | | | | | +----------------------------------------------------+ Best States ------------- Heat Dissipation 31 Energy Generation 15 Energy Capacity 250 Matter Stores 300 Matter Capacity 300 Sight Range 16 Terrain Scan Range 16 Terrain Scan Density 10 Armor Coverage 300 Resistance: KI 20 Resistance: TH 20 Resistance: EX 20 Resistance: EM 20 Resistance: I 20 Resistance: S 20 Resistance: P 20 Weapon Shielding 33 Evasion (%) 50 Recoil Reduction 1 Offensive Hacking 10 Item Schematics ----------------- None Robot Schematics ------------------ None Fabricated ------------ Nothing Alien Tech Used ----------------- None Achievements -------------- Librarian Part-time Mechanic Challenges ------------ None Game ------ Seed TeslaImprovedTube Manual? 0 Play Time 00:32:15 Cumulative 1.1 hours Start 2024.06.24 @ 21:43:22 End 2024.06.24 @ 22:20:37 Sessions 1 Manual Loads 0 Difficulty Adventurer Special Mode None Game No. 3 Rogue 0 Adventurer 3 Explorer 0 Win Type - Total 0 Types 0/0/0/0/0/0/0/0/0 Lore% 1 Gallery% 3 Achievement% 3 Wizard Run 0 Options --------- Layout 1 ASCII 0 Keyboard 0 Movement Mouse Keybinds 0 Fullscreen 0 Font 20/Terminus Map View 50x35 Zoom Use 20% Tactical HUD 0 Map Filters NONE Filters NONE Steam 1 RUN: 394386c4-5f87-4186-b2bb-8254d3bd61a2